[Event "Centenary THK University 2019"]
[Site "Ankara"]
[Date "2019.05.18"]
[Round "2"]
[White "Civcer, Omer Faruk"]
[Black "Buker, Muhittin"]
[Result "0-1"]
[ECO "C45"]
[WhiteElo "1471"]
[BlackElo "1993"]
[Annotator "NA RC"]
[PlyCount "74"]
[EventDate "2019.05.17"]
[EventType "swiss"]
[EventCountry "TUR"]
[SourceTitle "playchess.com"]
[Source "ChessBase"]
[SourceQuality "1"]
[TimeControl "5400+30"]

1. e4 {[%emt 0:49:30]} e5 {[%emt 1:01:30]} 2. Nf3 {[%emt 0:00:30]} Nc6 {[%emt 0:00:30]} 3. d4 {[%emt 0:00:30]} exd4 {[%emt 0:00:30]} 4. Nxd4 {[%emt 0:00:30]} Bc5 {[%emt 0:00:30]} 5. Be3 {[%emt 0:00:30]} Qf6 {[%emt 0:00:30]} 6. c3 {[%emt 0:00:30]} Nge7 {[%emt 0:00:30]} 7. Be2 {[%emt 0:00:30]} d6 {[%emt 0:00:30]} 8. O-O {[%emt 0:00:30]} Bb6 {[%emt 0:00:30]} 9. Na3 {[%emt 0:00:30] C45: Scotch Game} Qg6 {[%emt 0:00:30]} 10. Re1 $146 {[%emt 0:00:30]} ({Predecessor:} 10. f3 Ne5 11. Kh1 h5 12. Ndb5 Bxe3 13. Nxc7+ Kf8 14. Nxa8 Bf4 15. Nc7 f5 16. Nd5 Nxd5 17. Qxd5 {1-0 (24) Andersson,C (2134)-Amarapala,S (1709) Helsingor 2011}) 10... O-O {[%emt 0:00:30]} 11. f3 {[%emt 0:00:30]} f5 {[%emt 0:00:30]} 12. Bd3 {[%emt 0:00:30]} f4 {[%emt 0:00:30]} 13. Bf2 {[%emt 0:01:30]} Ne5 {[%emt 0:00:30]} 14. Bf1 {[%emt 0:00:30]} Kh8 {[%emt 0:00:30]} 15. Nc4 {[%emt 0:01:30]} Qf7 {[%emt 0:13:39]} 16. Nxb6 {[%emt 0:36:12]} axb6 {[%emt 0:00:30]} 17. Qb3 {[%emt 0:00:30]} Qg6 {[%emt 0:00:30]} 18. Kh1 {[%emt 0:00:30]} Bd7 {[%emt 0:00:30]} 19. Qc2 {[%emt 0:00:30]} Ra5 {[%emt 0:00:30]} 20. a3 {[%emt 0:00:30]} c5 {[%emt 0:00:30]} 21. Ne2 {[%emt 0:00:30]} Qf7 {[%emt 0:00:30]} 22. Nc1 {[%emt 0:00:30]} Be6 {[%emt 0:00:30]} 23. b3 {[%emt 0:00:30]} Rfa8 {[%emt 0:00:30]} 24. a4 {[%emt 0:00:30]} b5 {[%emt 0:00:30]} 25. Rd1 {[%emt 0:00:30]} bxa4 {[%emt 0:00:30]} 26. Rxa4 {[%emt 0:00:30]} Rxa4 {[%emt 0:00:30]} 27. bxa4 {[%emt 0:00:30]} Bc4 {[%emt 0:00:30]} 28. Bxc4 {[%emt 0:00:30]} Qxc4 {[%emt 0:00:30]} 29. Rxd6 {[%emt 0:00:30]} N7c6 {[%emt 0:00:30]} 30. h3 {[%emt 0:00:30]} Rxa4 {[%emt 0:00:30]} 31. Rd5 {[%emt 0:02:18]} Ra1 {[%emt 0:01:29]} 32. Qd1 {[%emt 0:00:14]} h6 {[%emt 0:03:26]} 33. Rxc5 {[%emt 0:00:43]} Qa6 {[%emt 0:01:04]} 34. Be1 {[%emt 0:01:06]} Qa3 {[%emt 0:00:30]} 35. Qd6 {[%emt 0:00:30]} Qxc1 {[%emt 0:00:32]} 36. Qf8+ {[%emt 0:00:48]} Kh7 {[%emt 0:00:05]} 37. Qf5+ {[%emt 0:00:19]} g6 {[%emt 0:02:36]} 0-1

[Event "Centenary THK University 2019"]
[Site "Ankara"]
[Date "2019.05.18"]
[Round "2"]
[White "Karabacak, Ceylin Deniz"]
[Black "Demir, Candost Aziz"]
[Result "0-1"]
[ECO "C55"]
[WhiteElo "1408"]
[BlackElo "1148"]
[Annotator "NA RC"]
[PlyCount "40"]
[EventDate "2019.05.17"]
[EventType "swiss"]
[EventCountry "TUR"]
[SourceTitle "playchess.com"]
[Source "ChessBase"]
[SourceQuality "1"]
[TimeControl "5400+30"]

1. e4 {[%emt 1:29:38]} e5 {[%emt 0:55:30]} 2. Nf3 {[%emt 0:00:30]} Nc6 {[%emt 0:00:30]} 3. Bc4 {[%emt 0:00:30]} Nf6 {[%emt 0:00:30]} 4. a3 {[%emt 0:00:30]} Be7 {[%emt 0:00:30]} 5. c3 {[%emt 0:00:30]} O-O {[%emt 0:00:30]} 6. O-O {[%emt 0:00:30]} d6 {[%emt 0:00:30]} 7. Bb3 {[%emt 0:00:30]} h6 {[%emt 0:00:30]} 8. Re1 {[%emt 0:00:50]} Be6 {[%emt 0:00:30]} 9. Bc2 {[%emt 0:00:30]} Nb8 {[%emt 0:00:30]} 10. d4 {[%emt 0:00:30]} Nbd7 {[%emt 0:00:30]} 11. h3 {[%emt 0:00:30]} c6 {[%emt 0:00:30]} 12. Nbd2 {[%emt 0:00:30]} Qc7 {[%emt 0:00:30]} 13. Nf1 {[%emt 0:00:30]} d5 {[%emt 0:00:30]} 14. exd5 {[%emt 0:00:30]} Bxd5 {[%emt 0:00:30]} 15. Nxe5 {[%emt 0:00:30]} Rad8 {[%emt 0:00:30]} 16. Nxd7 {[%emt 0:00:30]} Qxd7 {[%emt 0:00:30]} 17. Bf4 {[%emt 0:00:30]} c5 {[%emt 0:00:30]} 18. dxc5 {[%emt 0:00:30]} Bxc5 {[%emt 0:00:30]} 19. Bd3 {[%emt 0:00:30]} Qc6 {[%emt 0:00:30]} 20. Qc1 {[%emt 0:00:30]} Bxg2 {[%emt 0:01:30]} 0-1

[Event "Centenary THK University 2019"]
[Site "Ankara"]
[Date "2019.05.18"]
[Round "2"]
[White "Deveci, Huseyin Said"]
[Black "Algul, Deniz Bilge"]
[Result "1-0"]
[ECO "B00"]
[WhiteElo "1274"]
[BlackElo "1149"]
[Annotator "NA RC"]
[PlyCount "49"]
[EventDate "2019.05.17"]
[EventType "swiss"]
[EventCountry "TUR"]
[SourceTitle "playchess.com"]
[Source "ChessBase"]
[SourceQuality "1"]
[TimeControl "5400+30"]

1. e4 {[%emt 0:59:30]} b6 {[%emt 1:25:48]} 2. d4 {[%emt 0:00:30]} Bb7 {[%emt 0:00:30]} 3. Nc3 {[%emt 0:00:30]} e6 {[%emt 0:00:30]} 4. Nf3 {[%emt 0:00:30]} Bb4 {[%emt 0:00:30]} 5. Bd3 {[%emt 0:00:30]} Nf6 {[%emt 0:00:30]} 6. Bg5 {[%emt 0:00:30]} h6 {[%emt 0:00:30]} 7. Bxf6 {[%emt 0:00:30]} Qxf6 {[%emt 0:00:30]} 8. a3 {[%emt 0:00:30]} Bxc3+ {[%emt 0:00:30]} 9. bxc3 {[%emt 0:00:30]} c5 {[%emt 0:00:30]} 10. O-O {[%emt 0:00:30]} Nc6 {[%emt 0:00:30]} 11. d5 {[%emt 0:00:30]} exd5 {[%emt 0:00:30]} 12. exd5 {[%emt 0:00:30]} Ne7 {[%emt 0:00:30]} 13. c4 {[%emt 0:00:30]} O-O {[%emt 0:00:30]} 14. Nd2 {[%emt 0:00:30]} Qh4 {[%emt 0:01:59]} 15. Re1 {[%emt 0:00:30]} Rfe8 {[%emt 0:00:30]} 16. Qf3 {[%emt 0:00:30]} Ng6 {[%emt 0:00:30]} 17. g3 {[%emt 0:00:30]} Qd4 {[%emt 0:00:30]} 18. Nb3 {[%emt 0:00:30]} Qc3 {[%emt 0:02:32]} 19. Rxe8+ {[%emt 0:00:30]} Rxe8 {[%emt 0:00:30]} 20. Qf5 {[%emt 0:00:30]} Re1+ {[%emt 0:00:30]} 21. Rxe1 {[%emt 0:00:30]} Qxe1+ {[%emt 0:00:30]} 22. Kg2 {[%emt 0:00:30]} Qe7 {[%emt 0:00:30]} 23. h4 {[%emt 0:00:30]} Nf8 {[%emt 0:00:30]} 24. h5 {[%emt 0:00:30]} Qg5 {[%emt 0:00:30]} 25. Qf3 {[%emt 0:04:30]} 1-0

[Event "Centenary THK University 2019"]
[Site "Ankara"]
[Date "2019.05.18"]
[Round "2"]
[White "Kucukozer, Ali"]
[Black "Demir, Onder"]
[Result "0-1"]
[ECO "A38"]
[WhiteElo "1109"]
[BlackElo "1428"]
[Annotator "NA RC"]
[PlyCount "46"]
[EventDate "2019.05.17"]
[EventType "swiss"]
[EventCountry "TUR"]
[SourceTitle "playchess.com"]
[Source "ChessBase"]
[SourceQuality "1"]
[TimeControl "5400+30"]

1. c4 {[%emt 1:06:30]} Nf6 {[%emt 0:51:30]} 2. Nc3 {[%emt 0:00:30]} c5 {[%emt 0:00:30]} 3. Nf3 {[%emt 0:00:30]} Nc6 {[%emt 0:00:30]} 4. d3 {[%emt 0:00:30]} g6 {[%emt 0:00:30]} 5. g3 {[%emt 0:00:30]} Bg7 {[%emt 0:00:30]} 6. Bg2 {[%emt 0:00:30]} O-O {[%emt 0:00:30]} 7. a3 {[%emt 0:00:30]} d5 {[%emt 0:00:30]} 8. cxd5 {[%emt 0:00:30]} Nxd5 {[%emt 0:00:30]} 9. Bd2 {[%emt 0:02:30]} e6 {[%emt 0:00:30]} 10. Qc1 {[%emt 0:00:30]} Na5 {[%emt 0:00:30]} 11. Qd1 {[%emt 0:01:30]} c4 {[%emt 0:00:30]} 12. dxc4 {[%emt 0:00:30]} Nxc4 {[%emt 0:00:30]} 13. Qc1 {[%emt 0:00:30]} Nxd2 {[%emt 0:00:30]} 14. Nxd2 {[%emt 0:00:30]} Nxc3 {[%emt 0:00:30]} 15. bxc3 {[%emt 0:00:30]} Qc7 {[%emt 0:00:30]} 16. Rb1 {[%emt 0:01:30]} Qxc3 {[%emt 0:00:00]} 17. O-O {[%emt 0:00:30]} Rb8 {[%emt 0:00:00]} 18. Qxc3 {[%emt 0:00:30]} Bxc3 {[%emt 0:00:30]} 19. Ne4 {[%emt 0:00:30]} Be5 {[%emt 0:00:30]} 20. f4 {[%emt 0:00:30]} Bd4+ {[%emt 0:00:30]} 21. Kh1 {[%emt 0:00:30]} b6 {[%emt 0:00:30]} 22. Nd6 {[%emt 0:00:30]} Ba6 {[%emt 0:00:30]} 23. Rfd1 {[%emt 0:01:12]} e5 {[%emt 0:00:00]} 0-1

[Event "Centenary THK University 2019"]
[Site "Ankara"]
[Date "2019.05.18"]
[Round "3"]
[White "Aliyev, Elnur"]
[Black "Subasi, Fidel"]
[Result "1-0"]
[ECO "A04"]
[WhiteElo "2146"]
[BlackElo "1702"]
[Annotator "NA"]
[PlyCount "77"]
[EventDate "2019.05.17"]
[EventType "swiss"]
[EventCountry "TUR"]
[SourceTitle "playchess.com"]
[Source "ChessBase"]
[SourceQuality "1"]
[TimeControl "5400+30"]

1. Nf3 {[%emt 0:30:30]} f5 {[%emt 0:30:30]} 2. d3 {[%emt 0:00:00]} d6 {[%emt 0:00:00]} 3. e4 {[%emt 0:00:00]} e5 {[%emt 0:01:00]} 4. Nc3 {[%emt 0:01:30]} Nf6 {[%emt 0:02:30]} 5. exf5 {[%emt 0:01:30]} Bxf5 {[%emt 0:00:30]} 6. d4 {[%emt 0:00:30]} e4 {[%emt 0:05:30]} 7. Qe2 {[%emt 0:08:30]} (7. Nh4 $5 {[%cal Rh4f5]} Bc8 8. f3 $14) 7... d5 {[%emt 0:07:30]} 8. Nd2 {[%emt 0:27:30]} (8. Qb5+ $11 {keeps the balance.} Nc6 9. Qxb7) 8... Nc6 $15 {[%emt 0:01:30]} 9. Nb3 {[%emt 0:01:30]} Be7 {[%emt 0:01:30]} 10. h3 {[%emt 0:05:24]} O-O {[%emt 0:01:30]} 11. g4 {[%emt 0:01:31]} Bg6 {[%emt 0:04:30]} 12. Be3 {[%emt 0:00:10]} b6 {[%emt 0:03:30]} 13. O-O-O {[%emt 0:03:59]} Bb4 {[%emt 0:02:30]} 14. h4 {[%emt 0:03:35]} Bxc3 {[%emt 0:03:30]} 15. bxc3 {[%emt 0:00:03]} Qd6 {[%emt 0:05:30]} 16. h5 {[%emt 0:01:47]} Qa3+ {[%emt 0:00:30]} 17. Kb1 {[%emt 0:00:22]} Be8 {[%emt 0:02:30]} 18. g5 {[%emt 0:00:23]} Nd7 {[%emt 0:00:00]} 19. Bh3 {[%emt 0:01:49]} Qe7 {[%emt 0:00:00]} 20. c4 {[%emt 0:00:34]} a5 {[%emt 0:03:30]} 21. cxd5 {[%emt 0:00:24]} Nb4 {[%emt 0:00:30]} 22. Be6+ {[%emt 0:04:37]} Bf7 {[%emt 0:02:43]} 23. Bxf7+ {[%emt 0:03:37]} Qxf7 {[%emt 0:01:14]} 24. g6 {[%emt 0:00:13]} Qxd5 {[%emt 0:00:50]} 25. h6 {[%emt 0:00:25]} hxg6 {[%emt 0:04:44]} 26. hxg7 {[%emt 0:00:09]} Kxg7 {[%emt 0:00:09]} 27. Bh6+ {[%emt 0:00:22]} Kf7 {[%emt 0:00:29]} 28. Bxf8 {[%emt 0:00:55]} Nxf8 {[%emt 0:00:10]} 29. a3 {[%emt 0:01:14]} a4 {[%emt 0:00:25]} 30. Nc1 {[%emt 0:01:14]} Nc6 {[%emt 0:01:07]} 31. Rh4 {[%emt 0:00:07]} Re8 {[%emt 0:05:30]} 32. c3 {[%emt 0:00:28]} Na5 {[%emt 0:00:38]} 33. Re1 {[%emt 0:00:44]} Nc4 {[%emt 0:00:37]} 34. Ka1 {[%emt 0:00:38]} Nxa3 {[%emt 0:02:42]} 35. Rf4+ {[%emt 0:00:24]} Kg7 {[%emt 0:00:32]} 36. Rxe4 {[%emt 0:00:38]} Qc6 {[%emt 0:04:40]} 37. Re7+ {[%emt 0:00:35]} Kg8 {[%emt 0:00:18]} 38. Qa2+ {[%emt 0:00:38]} Kh8 {[%emt 0:01:24]} 39. Qxa3 {[%emt 0:00:12]} 1-0

[Event "Centenary THK University 2019"]
[Site "Ankara"]
[Date "2019.05.18"]
[Round "3"]
[White "Guven, Oguz Kagan"]
[Black "Ozcan, Kadir Kutay"]
[Result "1/2-1/2"]
[ECO "B52"]
[WhiteElo "2103"]
[BlackElo "1822"]
[Annotator "NA"]
[PlyCount "48"]
[EventDate "2019.05.17"]
[EventType "swiss"]
[EventCountry "TUR"]
[SourceTitle "playchess.com"]
[Source "ChessBase"]
[SourceQuality "1"]
[TimeControl "5400+30"]

1. e4 {[%emt 0:30:30]} c5 {[%emt 0:35:30]} 2. Nf3 {[%emt 0:00:30]} d6 {[%emt 0:00:30]} 3. Bb5+ {[%emt 0:00:00]} Bd7 {[%emt 0:00:30]} 4. Bxd7+ {[%emt 0:00:00]} Qxd7 {[%emt 0:00:00]} 5. O-O {[%emt 0:00:30]} Nc6 {[%emt 0:00:00]} 6. c3 {[%emt 0:00:00]} Nf6 {[%emt 0:01:30]} 7. d4 {[%emt 0:00:00]} Nxe4 {[%emt 0:01:30]} 8. d5 {[%emt 0:00:30]} Nb8 {[%emt 0:01:30] B52: Sicilian: Moscow Variation with 3...Bd7} (8... Ne5 9. Re1 Nxf3+ 10. Qxf3 Nf6 11. c4 e5 12. dxe6 fxe6 13. Bg5 Be7 14. Nc3 h6 15. Bh4 O-O 16. Qh3 Kf7 17. Rad1 Rad8 18. f4 b6 19. b3 e5 20. Qf3 Qg4 21. Qxg4 Nxg4 22. Bxe7 Kxe7 23. h3 Nf6 24. fxe5 dxe5 25. Rxe5+ {½-½ (25) Brodda,W (2581)-Dothan,Y (2575) ICCF email 2016}) 9. Re1 {[%emt 0:00:30]} Nf6 {[%emt 0:00:30]} 10. Bg5 {[%emt 0:01:30]} h6 {[%emt 0:00:30]} 11. Bxf6 {[%emt 0:00:30]} gxf6 {[%emt 0:00:00]} 12. Nh4 {[%emt 0:04:30]} Na6 {[%emt 0:03:00]} 13. Nd2 {[%emt 0:01:30]} O-O-O {[%emt 0:01:30]} 14. Qh5 $146 {[%emt 0:01:30]} ({Predecessor:} 14. Qf3 Nc7 15. c4 Rg8 16. h3 {½-½ (49) Calleri,S (2297)-Nierobisz,J (2362) ICCF email 2008}) 14... e6 {[%emt 0:01:30]} 15. dxe6 {[%emt 0:01:30]} fxe6 {[%emt 0:00:00]} 16. Rad1 {[%emt 0:01:30]} Nc7 {[%emt 0:02:00]} 17. Ne4 {[%emt 0:00:30]} Qg7 {[%emt 0:00:30]} 18. Re3 {[%emt 0:01:30] [#]} Nd5 {[%emt 0:08:30]} ({Black should try} 18... Rh7 $1 $17) 19. Rg3 $14 {[%emt 0:01:30]} Qc7 {[%emt 0:00:30]} 20. Ng6 {[%emt 0:10:30]} Rg8 {[%emt 0:04:30]} 21. c4 {[%emt 0:01:30]} Ne7 {[%emt 0:03:30]} 22. Nxf6 {[%emt 0:06:30]} Rxg6 {[%emt 0:00:30]} 23. Rxg6 {[%emt 0:00:30]} Nxg6 {[%emt 0:00:00]} 24. Qxg6 {[%emt 0:00:30]} Qg7 {[%emt 0:00:00]} 1/2-1/2

[Event "Centenary THK University 2019"]
[Site "Ankara"]
[Date "2019.05.18"]
[Round "3"]
[White "Buker, Muhittin"]
[Black "Keskin, Suara"]
[Result "1-0"]
[ECO "E91"]
[WhiteElo "1993"]
[BlackElo "1728"]
[Annotator "NA"]
[PlyCount "67"]
[EventDate "2019.05.17"]
[EventType "swiss"]
[EventCountry "TUR"]
[SourceTitle "playchess.com"]
[Source "ChessBase"]
[SourceQuality "1"]
[TimeControl "5400+30"]

1. d4 {[%emt 0:30:30]} d6 {[%emt 0:30:30]} 2. c4 {[%emt 0:00:00]} g6 {[%emt 0:00:30]} 3. Nc3 {[%emt 0:00:00]} Bg7 {[%emt 0:00:00]} 4. e4 {[%emt 0:00:30]} Nf6 {[%emt 0:00:00]} 5. Nf3 {[%emt 0:00:00]} O-O {[%emt 0:00:30]} 6. Be2 {[%emt 0:00:00]} Nbd7 {[%emt 0:00:30]} 7. O-O {[%emt 0:00:30]} e5 {[%emt 0:00:30]} 8. Be3 {[%emt 0:00:30]} c6 {[%emt 0:02:30]} 9. h3 {[%emt 0:00:30]} (9. d5 $16) 9... Qc7 {[%emt 0:01:30]} 10. Qd2 {[%emt 0:03:30]} Ne8 {[%emt 0:06:30]} 11. Rfd1 {[%emt 0:01:30]} f5 {[%emt 0:05:30]} 12. dxe5 {[%emt 0:00:30]} dxe5 {[%emt 0:02:30]} ({Black should try} 12... Nxe5 $14 13. Nxe5 Bxe5) 13. Bh6 {[%emt 0:01:30]} ({Better is} 13. exf5 $16 gxf5 14. Ng5) 13... f4 {[%emt 0:06:30]} 14. Bxg7 {[%emt 0:00:30]} Kxg7 {[%emt 0:00:30]} 15. b4 {[%emt 0:00:30]} Rf7 {[%emt 0:08:30]} 16. c5 {[%emt 0:00:30]} a5 {[%emt 0:00:30]} 17. a3 {[%emt 0:00:30]} axb4 {[%emt 0:02:30]} 18. axb4 {[%emt 0:00:30]} Rxa1 {[%emt 0:00:30]} 19. Rxa1 {[%emt 0:00:30]} Ndf6 {[%emt 0:00:30]} 20. Ra8 {[%emt 0:02:30]} Re7 $18 {[%emt 0:04:30]} 21. Bc4 {[%emt 0:02:30]} h6 {[%emt 0:01:30]} 22. Qe2 {[%emt 0:04:30]} g5 {[%emt 0:04:30]} 23. Nh2 {[%emt 0:00:30]} h5 {[%emt 0:00:30]} 24. Na4 {[%emt 0:00:30]} Be6 {[%emt 0:02:41]} 25. Bxe6 {[%emt 0:00:30]} Rxe6 {[%emt 0:00:02]} 26. Nb6 {[%emt 0:00:00]} Qf7 {[%emt 0:01:02]} 27. Nf3 {[%emt 0:01:00]} Qg6 {[%emt 0:01:16]} 28. Nc4 {[%emt 0:00:30]} Nd7 {[%emt 0:01:35]} 29. Qd3 {[%emt 0:02:30]} Nef6 {[%emt 0:04:47]} 30. Rd8 {[%emt 0:00:30]} Re7 {[%emt 0:00:56]} 31. Qd6 {[%emt 0:00:30]} Re8 {[%emt 0:05:03]} 32. Ncxe5 {[%emt 0:05:30]} Nxe5 {[%emt 0:00:44]} 33. Nxe5 {[%emt 0:00:30]} Rxd8 {[%emt 0:01:01]} 34. Qe7+ {[%emt 0:00:00]} 1-0

[Event "Centenary THK University 2019"]
[Site "Ankara"]
[Date "2019.05.18"]
[Round "3"]
[White "Gozubuyukoglu, Selami"]
[Black "Polat, Ali Gorkem"]
[Result "1-0"]
[ECO "B06"]
[WhiteElo "1818"]
[BlackElo "1610"]
[Annotator "NA"]
[PlyCount "125"]
[EventDate "2019.05.17"]
[EventType "swiss"]
[EventCountry "TUR"]
[SourceTitle "playchess.com"]
[Source "ChessBase"]
[SourceQuality "1"]
[TimeControl "5400+30"]

1. e4 {[%emt 0:30:30]} d6 {[%emt 0:30:30]} 2. d4 {[%emt 0:00:00]} g6 {[%emt 0:00:30]} 3. Nc3 {[%emt 0:01:00]} Bg7 {[%emt 0:00:30]} 4. Be3 {[%emt 0:00:30]} a6 {[%emt 0:00:30]} 5. Qd2 {[%emt 0:00:30]} b5 {[%emt 0:00:30]} 6. f3 {[%emt 0:00:30]} Bb7 {[%emt 0:00:30]} 7. Nge2 {[%emt 0:00:30]} Nd7 {[%emt 0:00:30]} 8. g4 {[%emt 0:02:30]} Rc8 {[%emt 0:01:30]} 9. h4 {[%emt 0:00:30]} h5 {[%emt 0:01:30]} 10. g5 {[%emt 0:01:30]} c5 {[%emt 0:02:30]} 11. d5 $11 {[%emt 0:01:30]} Ne5 {[%emt 0:01:30]} 12. Ng1 {[%emt 0:03:30]} Qa5 {[%emt 0:05:30]} 13. Nd1 {[%emt 0:05:30]} Qxd2+ {[%emt 0:07:30]} 14. Bxd2 {[%emt 0:00:30]} Rb8 {[%emt 0:00:30]} 15. Rb1 {[%emt 0:02:30]} Bc8 {[%emt 0:05:30]} ({Black should play} 15... e6 $15 16. dxe6 fxe6) 16. Ne3 {[%emt 0:00:30]} e6 {[%emt 0:12:30]} 17. Ba5 {[%emt 0:07:30]} Rb7 {[%emt 0:01:30]} 18. Rd1 {[%emt 0:00:30]} Bf8 {[%emt 0:09:02]} 19. Bh3 {[%emt 0:06:30]} Nc4 {[%emt 0:04:24]} 20. Nxc4 {[%emt 0:01:30]} bxc4 {[%emt 0:00:02]} 21. Bc3 {[%emt 0:00:30]} Rh7 {[%emt 0:00:10]} 22. dxe6 {[%emt 0:05:30]} Bxe6 {[%emt 0:00:48]} 23. Bxe6 {[%emt 0:03:30]} fxe6 {[%emt 0:00:05]} 24. Ne2 {[%emt 0:00:00]} Rb6 {[%emt 0:01:05]} 25. Nf4 {[%emt 0:01:00]} Kf7 {[%emt 0:00:32]} 26. Rd2 {[%emt 0:04:56]} Bg7 {[%emt 0:01:10]} 27. Bxg7 {[%emt 0:00:45]} Rxg7 {[%emt 0:00:03]} 28. c3 {[%emt 0:00:13]} Ne7 {[%emt 0:00:21]} 29. Ke2 {[%emt 0:00:37]} Rg8 {[%emt 0:02:00]} 30. Rhd1 {[%emt 0:02:52]} Rd8 {[%emt 0:01:16]} 31. Ng2 {[%emt 0:01:20]} d5 {[%emt 0:01:14]} 32. Ne3 {[%emt 0:01:16]} Rdb8 {[%emt 0:01:51]} 33. exd5 {[%emt 0:01:43]} exd5 {[%emt 0:00:05]} 34. Nxd5 {[%emt 0:00:42]} Rxb2 {[%emt 0:03:12]} 35. Ne3 {[%emt 0:01:08]} Rxd2+ {[%emt 0:00:30]} 36. Rxd2 {[%emt 0:00:30]} Ke6 {[%emt 0:03:17]} 37. Nxc4 {[%emt 0:00:43]} Nf5 {[%emt 0:01:44]} 38. Kf2 {[%emt 0:01:27]} Nxh4 {[%emt 0:01:04]} 39. Rd6+ {[%emt 0:01:54]} Ke7 {[%emt 0:01:34]} 40. Rxa6 {[%emt 0:00:52]} Rf8 {[%emt 0:00:00]} 41. Ne5 {[%emt 0:00:12]} Rf5 {[%emt 0:00:38]} 42. Nxg6+ {[%emt 0:00:20]} Nxg6 {[%emt 0:00:37]} 43. Rxg6 {[%emt 0:00:30]} Rd5 {[%emt 0:00:00]} 44. Ke3 {[%emt 0:00:30]} Kf7 {[%emt 0:00:00]} 45. Rf6+ {[%emt 0:00:26]} Kg7 {[%emt 0:00:00]} 46. f4 {[%emt 0:00:00]} c4 {[%emt 0:00:19]} 47. Rh6 {[%emt 0:00:50]} Rd3+ {[%emt 0:00:02]} 48. Ke4 {[%emt 0:00:29]} Rxc3 {[%emt 0:00:01]} 49. Rxh5 {[%emt 0:00:00]} Rc2 {[%emt 0:00:03]} 50. Rh3 {[%emt 0:00:22]} Rxa2 {[%emt 0:00:23]} 51. Rc3 {[%emt 0:00:15]} Ra4 {[%emt 0:01:53]} 52. Kd4 {[%emt 0:00:08]} Ra7 {[%emt 0:00:34]} 53. Rxc4 {[%emt 0:00:08]} Rd7+ {[%emt 0:01:34]} 54. Ke4 {[%emt 0:00:30]} Re7+ {[%emt 0:00:00]} 55. Kf3 {[%emt 0:00:00]} Rd7 {[%emt 0:00:00]} 56. f5 {[%emt 0:00:56]} Rd3+ {[%emt 0:00:11]} 57. Kf4 {[%emt 0:00:00]} Rd1 {[%emt 0:00:14]} 58. Rc7+ {[%emt 0:00:00]} Kg8 {[%emt 0:00:04]} 59. g6 {[%emt 0:00:23]} Rd4+ {[%emt 0:00:54]} 60. Kg5 {[%emt 0:00:10]} Rd6 {[%emt 0:00:00]} 61. Rc8+ {[%emt 0:01:57]} Kg7 {[%emt 0:00:00]} 62. f6+ {[%emt 0:00:39]} Rxf6 {[%emt 0:00:00]} 63. Rc7+ {[%emt 0:00:00]} 1-0

[Event "Centenary THK University 2019"]
[Site "Ankara"]
[Date "2019.05.18"]
[Round "3"]
[White "Sekerci, Berkin"]
[Black "Atayman, Evren"]
[Result "1-0"]
[ECO "B56"]
[WhiteElo "1752"]
[BlackElo "1611"]
[Annotator "NA"]
[PlyCount "63"]
[EventDate "2019.05.17"]
[EventType "swiss"]
[EventCountry "TUR"]
[SourceTitle "playchess.com"]
[Source "ChessBase"]
[SourceQuality "1"]
[TimeControl "5400+30"]

1. e4 {[%emt 0:30:30]} c5 {[%emt 0:31:30]} 2. Nf3 {[%emt 0:03:30]} Nc6 {[%emt 0:06:30]} 3. d4 {[%emt 0:01:30]} cxd4 {[%emt 0:00:00]} 4. Nxd4 {[%emt 0:00:00]} Nf6 {[%emt 0:01:00]} 5. Nc3 {[%emt 0:00:00]} d6 {[%emt 0:00:30]} 6. g3 {[%emt 0:02:30]} e5 {[%emt 0:00:30]} 7. Nde2 {[%emt 0:04:30]} Be7 {[%emt 0:03:30]} 8. Bg2 {[%emt 0:00:30]} Be6 {[%emt 0:02:30]} 9. O-O {[%emt 0:00:30]} O-O {[%emt 0:00:30]} 10. h3 {[%emt 0:01:30]} Rc8 {[%emt 0:08:30]} 11. Be3 {[%emt 0:00:30]} Qa5 {[%emt 0:01:30]} 12. g4 {[%emt 0:11:30]} Rfd8 {[%emt 0:03:30]} 13. Nd5 {[%emt 0:00:30]} Bxd5 {[%emt 0:01:30]} 14. exd5 {[%emt 0:00:30]} Nb4 {[%emt 0:02:30]} 15. Nc3 {[%emt 0:00:30]} Rxc3 {[%emt 0:00:00]} 16. bxc3 {[%emt 0:00:30]} Nbxd5 {[%emt 0:00:00]} 17. g5 {[%emt 0:06:30]} Nxe3 {[%emt 0:01:30]} 18. fxe3 {[%emt 0:00:00]} Nd7 {[%emt 0:01:30]} 19. Bd5 {[%emt 0:02:00]} Bxg5 {[%emt 0:00:30]} 20. Rxf7 {[%emt 0:00:30]} Bxe3+ {[%emt 0:00:30]} 21. Kh1 {[%emt 0:00:30]} Kh8 {[%emt 0:00:30]} 22. Qf3 {[%emt 0:02:30]} Bf4 {[%emt 0:03:30]} 23. Rg1 {[%emt 0:04:30]} g6 {[%emt 0:03:30]} 24. Be4 {[%emt 0:02:30]} Nf8 {[%emt 0:00:30]} 25. Qg4 {[%emt 0:02:30]} Qxc3 {[%emt 0:02:30]} 26. Qh4 {[%emt 0:00:30]} Bg5 {[%emt 0:09:13]} 27. Rxg5 {[%emt 0:00:30]} Qc4 {[%emt 0:00:12]} 28. Rgf5 {[%emt 0:01:30]} g5 {[%emt 0:01:52]} 29. Qxg5 {[%emt 0:04:43]} Qxe4+ {[%emt 0:00:06]} 30. Kh2 {[%emt 0:00:06]} Ne6 {[%emt 0:09:37]} 31. Qf6+ {[%emt 0:00:20]} Kg8 {[%emt 0:00:29]} 32. Rg5+ {[%emt 0:00:03]} 1-0